bitfinex/quotes_BTCUSD_20251212
["timestamp","ask_amount","ask_price","bid_price","bid_amount"]
[1765507000480,0.01179662,92470.0,92469.0,0.01081443]
[1765507000680,0.03559662,92470.0,92467.0,0.22710753]
[1765507000877,0.00011662,92470.0,92469.0,0.04329168]
[1765507002556,0.00111662,92470.0,92469.0,0.04329168]
[1765507003400,0.00011662,92470.0,92469.0,0.04329168]
[1765507003600,0.00011662,92470.0,92469.0,0.04429168]
[1765507003798,0.00111662,92470.0,92469.0,0.04429168]
[1765507003974,0.00111662,92470.0,92469.0,0.04329168]
[1765507004179,0.00011662,92470.0,92469.0,0.04329168]
[1765507004383,0.00011662,92470.0,92469.0,0.04529168]
[1765507005511,0.00011662,92470.0,92469.0,0.04629168]
[1765507008063,0.00011662,92470.0,92469.0,0.003]
[1765507012789,0.00011662,92470.0,92469.0,0.02462887]
[1765507017514,0.00011662,92470.0,92469.0,0.003]
[1765507018059,0.00011662,92470.0,92469.0,0.02462887]
[1765507019956,0.00011662,92470.0,92469.0,0.003]
[1765507020863,0.00011662,92470.0,92469.0,0.02462887]
[1765507024214,0.00011662,92470.0,92469.0,0.003]
[1765507024414,0.00011662,92470.0,92469.0,0.04160256]
[1765507025304,0.00011662,92470.0,92469.0,0.003]
[1765507027560,0.00011662,92470.0,92469.0,0.2192887]
[1765507028334,0.00011662,92470.0,92469.0,0.27719254]
[1765507029415,0.00011662,92470.0,92469.0,0.2192887]
[1765507031425,0.04005662,92470.0,92469.0,0.003]
[1765507031628,0.26795674,92470.0,92469.0,0.003]
[1765507031859,0.05167038,92470.0,92469.0,0.003]
[1765507032256,0.05167038,92470.0,92469.0,0.002]
[1765507032513,0.01000089,92469.0,92468.0,0.21628963]
[1765507032692,0.00172949,92470.0,92468.0,0.21628963]
[1765507032850,0.00272949,92470.0,92469.0,0.003]
[1765507033262,0.00172949,92470.0,92468.0,0.21628963]
[1765507033652,0.001,92469.0,92468.0,0.21928963]
[1765507034261,0.001,92469.0,92468.0,0.22028963]
[1765507035474,0.00172949,92470.0,92468.0,0.21728963]
[1765507035716,0.00272949,92470.0,92468.0,0.22028963]
[1765507036337,0.00172949,92470.0,92468.0,0.21728963]
[1765507036579,0.001,92469.0,92468.0,0.21928963]
[1765507037083,0.001,92469.0,92468.0,0.22028963]
[1765507037991,0.00172949,92470.0,92468.0,0.21728895]
[1765507038374,0.00272949,92470.0,92468.0,0.2202894]
[1765507038992,0.00272949,92470.0,92468.0,0.2192894]
[1765507039383,0.00272949,92470.0,92468.0,0.2202894]
[1765507039528,0.00272949,92470.0,92468.0,0.2192894]
[1765507039964,0.00272949,92470.0,92468.0,0.2202894]
[1765507041760,0.00272949,92470.0,92468.0,0.004]
[1765507041967,0.00272949,92470.0,92468.0,0.2202906]
[1765507042169,0.00111662,92470.0,92469.0,0.02162887]
[1765507042729,0.00111662,92470.0,92468.0,0.2202906]
[1765507042912,0.00011662,92470.0,92468.0,0.2172906]
[1765507043309,0.00111662,92470.0,92469.0,0.003]
[1765507044736,0.00011662,92470.0,92468.0,0.2162906]
[1765507044959,0.00111662,92470.0,92468.0,0.2192906]
[1765507045177,0.00111662,92470.0,92468.0,0.2202906]
[1765507045383,0.00111662,92470.0,92468.0,0.2192906]
[1765507045569,0.00011662,92470.0,92468.0,0.2162906]
[1765507045739,0.00111662,92470.0,92469.0,0.003]
[1765507046384,0.00011662,92470.0,92468.0,0.2172906]
[1765507046582,0.00111662,92470.0,92468.0,0.2192906]
[1765507047101,0.00111662,92470.0,92469.0,0.05799079]
[1765507047950,0.00011662,92470.0,92469.0,0.05799079]
[1765507048157,0.00111662,92470.0,92469.0,0.06099079]
[1765507062759,0.00111662,92470.0,92469.0,0.02462887]
[1765507062983,0.00111662,92470.0,92469.0,0.13429886]
[1765507063145,0.00111662,92470.0,92469.0,0.05709374]
[1765507063766,0.00011662,92470.0,92469.0,0.05409374]
[1765507064046,0.00211662,92470.0,92469.0,0.06409374]
[1765507064242,0.00111662,92470.0,92469.0,0.06009374]
[1765507064698,0.00211662,92470.0,92469.0,0.06409374]
[1765507065037,0.00211662,92470.0,92469.0,0.35479374]
[1765507065238,0.00211662,92470.0,92469.0,0.33316487]
[1765507077179,0.00211662,92470.0,92469.0,0.38318326]
[1765507077991,8.4606422,92500.0,92497.0,0.01081116]
[1765507078159,8.462644,92500.0,92499.0,0.04329168]
[1765507078773,8.462644,92500.0,92499.0,0.07575009]
[1765507079157,8.465644,92500.0,92499.0,0.07575009]
[1765507079782,8.463644,92500.0,92499.0,0.07575009]
[1765507079983,8.462644,92500.0,92499.0,0.07575009]
[1765507080322,8.462644,92500.0,92499.0,0.07675009]
[1765507080458,8.46203113,92500.0,92499.0,0.07975009]
[1765507080658,8.46203113,92500.0,92499.0,0.12287807]
[1765507081695,8.46103113,92500.0,92499.0,0.11987807]
[1765507082054,8.46203113,92500.0,92499.0,0.12387807]
[1765507082260,8.46203113,92500.0,92499.0,0.12287807]
[1765507082685,8.46203113,92500.0,92499.0,0.12487807]
[1765507086707,8.46203113,92500.0,92499.0,0.08175009]
[1765507086932,8.46203113,92500.0,92499.0,0.18256754]
[1765507087127,8.46203113,92500.0,92499.0,0.12487807]
[1765507087558,8.46203113,92500.0,92499.0,0.18256514]
[1765507087801,8.463644,92500.0,92499.0,0.03845841]
[1765507088777,8.463644,92500.0,92499.0,0.006]
[1765507088937,8.50723851,92500.0,92491.0,0.01081186]
[1765507089139,0.01081127,92496.0,92492.0,0.04327338]
[1765507089383,0.01242414,92496.0,92492.0,0.04327338]
[1765507089588,0.00161287,92496.0,92493.0,0.01081162]
[1765507089790,0.00161287,92496.0,92493.0,0.22704351]
[1765507090331,0.00161287,92496.0,92493.0,0.01081162]
[1765507091324,0.01242414,92496.0,92493.0,0.01081162]
[1765507091540,0.01242414,92496.0,92495.0,0.04329168]
[1765507093039,0.01242414,92496.0,92495.0,0.04629168]
[1765507093635,0.02898414,92496.0,92495.0,0.003]
[1765507093778,0.09748865,92496.0,92495.0,0.003]
[1765507094420,0.07357865,92496.0,92495.0,0.003]
[1765507094822,0.04459451,92492.0,92490.0,0.01181196]
[1765507095030,0.04459451,92492.0,92490.0,0.00099999]
[1765507095437,0.01081197,92490.0,92487.0,0.02885491]
[1765507095782,0.22705303,92490.0,92487.0,0.06131912]
[1765507095897,0.01081197,92490.0,92487.0,0.07213145]
[1765507096101,0.01081186,92491.0,92488.0,0.01081221]
[1765507096335,0.04459451,92492.0,92489.0,0.01081209]
[1765507097339,0.05540625,92492.0,92489.0,0.01081209]
[1765507097748,0.001,92490.0,92489.0,0.01081209]
[1765507097946,0.05540625,92492.0,92489.0,0.01081209]
[1765507098343,0.05640625,92492.0,92489.0,0.01081209]
[1765507098604,0.05540625,92492.0,92489.0,0.01181209]
[1765507098882,0.001,92490.0,92489.0,0.01181209]
[1765507099232,0.05540625,92492.0,92489.0,0.01181209]
[1765507099468,0.05640625,92492.0,92489.0,0.01181209]
[1765507099890,0.04559451,92492.0,92489.0,0.01081209]
[1765507100086,0.04559451,92492.0,92489.0,0.01181209]
[1765507100643,0.04459451,92492.0,92489.0,0.01181209]
[1765507100997,0.001,92490.0,92489.0,0.01181209]
[1765507101144,0.001,92490.0,92489.0,0.001]
[1765507101344,0.04459451,92492.0,92489.0,0.01081209]
[1765507101573,0.04559451,92492.0,92489.0,0.01081209]
[1765507101774,0.04459451,92492.0,92489.0,0.01181209]
[1765507102082,0.04459451,92492.0,92489.0,0.0442763]
[1765507102305,0.001,92490.0,92489.0,0.0442763]
[1765507102482,0.04459451,92492.0,92489.0,0.0442763]
[1765507103187,0.04459451,92492.0,92489.0,0.01181209]
[1765507103592,0.05540625,92492.0,92489.0,0.03346421]
[1765507103809,0.05640625,92492.0,92489.0,0.001]
[1765507104010,0.05640625,92492.0,92489.0,0.01181209]
[1765507106149,0.01521,92490.0,92489.0,0.001]
[1765507106298,0.26083176,92491.0,92489.0,0.001]
[1765507106719,0.0395,92490.0,92489.0,0.001]
[1765507106972,0.10117451,92490.0,92489.0,0.001]
[1765507107315,0.07688451,92490.0,92489.0,0.001]
[1765507107963,0.03229,92490.0,92487.0,0.2270581]
[1765507108203,0.04459451,92489.0,92488.0,0.21624426]
[1765507110027,0.04459451,92489.0,92488.0,0.21724426]
[1765507110759,0.04559451,92489.0,92488.0,0.21724426]
[1765507110933,0.04559451,92489.0,92488.0,0.001]
[1765507115366,0.04559451,92489.0,92488.0,0.02989595]
[1765507115573,0.001,92489.0,92488.0,0.02262442]
[1765507115783,0.001,92489.0,92488.0,0.001]
[1765507116998,0.08980113,92489.0,92488.0,0.01808]
[1765507117256,0.08980113,92489.0,92488.0,0.001]
[1765507117456,0.12133813,92489.0,92488.0,0.001]
[1765507117757,0.14836837,92489.0,92488.0,0.001]
[1765507118160,0.08980113,92489.0,92488.0,0.001]
[1765507118316,0.04459451,92487.0,92486.0,0.02895569]
[1765507118526,0.04459451,92487.0,92482.0,0.01081291]
[1765507118527,0.04459451,92483.0,92482.0,0.01081291]
[1765507119064,0.06888451,92483.0,92482.0,0.01081291]
[1765507119239,0.06888451,92483.0,92482.0,0.04927736]
[1765507119614,0.09636451,92483.0,92482.0,0.03846445]
[1765507119820,0.04459451,92482.0,92481.0,0.03846445]
[1765507120160,0.26085514,92481.0,92480.0,0.03846445]
[1765507120378,0.21626765,92478.0,92477.0,0.03846445]
[1765507120570,0.21626765,92478.0,92476.0,0.07093372]
[1765507120773,0.02429,92477.0,92476.0,0.07093372]
[1765507121576,0.02429,92477.0,92472.0,0.06850115]
[1765507121577,0.01081361,92476.0,92472.0,0.06850115]
[1765507121815,0.01081361,92476.0,92472.0,0.03864266]
[1765507121816,0.23708928,92475.0,92472.0,0.03864266]
[1765507122015,0.23708928,92475.0,92470.0,0.0118143]
[1765507122016,0.05980451,92472.0,92471.0,0.03864266]
[1765507122165,0.07207451,92471.0,92470.0,0.03864266]
[1765507122372,0.09636451,92471.0,92469.0,0.03864266]
[1765507122616,0.09636451,92471.0,92469.0,0.03574266]
[1765507123326,0.07207451,92471.0,92469.0,0.03574266]
[1765507123492,0.02429,92470.0,92468.0,0.22710475]
[1765507124028,0.01521,92469.0,92467.0,0.04328639]
[1765507124245,0.04459451,92465.0,92464.0,0.01081501]
[1765507124741,0.04459451,92465.0,92464.0,0.04328849]
[1765507125793,0.00821545,92469.0,92468.0,0.21629104]
[1765507125942,0.04459451,92469.0,92468.0,0.21629104]
[1765507128266,0.04459451,92470.0,92462.0,0.22711865]
[1765507128499,0.04459451,92470.0,92400.0,0.0002]
[1765507128500,0.01081677,92449.0,92446.0,0.05768707]
[1765507128712,0.04459451,92445.0,92442.0,0.01081759]
[1765507128860,0.04459451,92445.0,92440.0,0.21635613]
[1765507128861,0.04459451,92445.0,92440.0,0.01081782]
[1765507129074,0.04459451,92445.0,92442.0,0.01081759]
[1765507129243,0.04459451,92446.0,92445.0,0.01081724]
[1765507129642,0.01203,92456.0,92444.0,0.04329168]
[1765507129643,0.01081501,92464.0,92455.0,0.01081607]
[1765507129843,0.02325,92465.0,92461.0,0.01081537]
[1765507129844,0.02708089,92463.0,92461.0,0.01081537]
[1765507130044,0.01203,92468.0,92462.0,0.21630507]
[1765507130045,0.02284455,92468.0,92462.0,0.21630507]
[1765507130251,0.02284455,92468.0,92465.0,0.0108149]
[1765507130252,0.01000089,92466.0,92465.0,0.0108149]
[1765507130695,0.04969089,92466.0,92463.0,0.04329168]
[1765507130920,0.02325,92465.0,92463.0,0.05410681]
[1765507132161,0.01644,92464.0,92463.0,0.05510681]
[1765507132360,0.03969,92464.0,92463.0,0.05510681]
[1765507132783,0.01644,92464.0,92463.0,0.05510681]
[1765507133208,0.03969,92464.0,92463.0,0.05510681]
[1765507133416,0.03969,92464.0,92463.0,0.05410681]
[1765507133775,0.04969,92464.0,92463.0,0.05510681]
[1765507134579,0.05869,92464.0,92463.0,0.05610681]
[1765507135539,0.019,92464.0,92463.0,0.05610681]
[1765507136579,0.009,92464.0,92463.0,0.05510681]
[1765507136791,0.009,92464.0,92463.0,0.07773708]
[1765507138060,0.02789326,92479.0,92475.0,0.01081373]
[1765507138775,0.01081385,92474.0,92470.0,0.01081431]
[1765507139564,0.01081396,92473.0,92467.0,0.01081466]
[1765507139754,0.01081396,92473.0,92464.0,0.77215999]
[1765507139755,0.05662451,92476.0,92469.0,0.2162887]
[1765507139957,0.05662451,92476.0,92471.0,0.21628225]
[1765507140177,0.001,92474.0,92473.0,0.01081396]
[1765507140354,0.01869287,92479.0,92476.0,0.01081361]
[1765507140559,0.01869287,92479.0,92477.0,0.04329168]
[1765507140738,0.01869287,92479.0,92477.0,0.25956125]
[1765507140946,0.01869287,92479.0,92477.0,0.04329168]
[1765507141344,0.01869287,92479.0,92473.0,0.01081396]
[1765507141345,0.01081361,92476.0,92473.0,0.01081396]
[1765507141568,0.01081361,92476.0,92472.0,0.01081408]
[1765507141788,0.21628168,92472.0,92470.0,0.001]
[1765507141969,0.04609373,92475.0,92452.0,0.01081642]
[1765507141970,0.01081572,92458.0,92452.0,0.01081642]
[1765507142285,0.01081607,92455.0,92451.0,0.01081654]
[1765507142444,0.01081595,92456.0,92452.0,0.01081642]
[1765507142798,0.01081595,92456.0,92449.0,0.22715183]
[1765507142799,0.04459451,92450.0,92449.0,0.01081677]
[1765507143620,0.0108163,92453.0,92449.0,0.01081677]
[1765507143743,0.04459451,92452.0,92449.0,0.01081677]
[1765507144146,0.04459451,92452.0,92450.0,0.21633315]
[1765507145099,0.04459451,92452.0,92450.0,0.2163323]
[1765507145671,0.04459451,92452.0,92449.0,0.01081677]
[1765507145892,0.04459451,92452.0,92450.0,0.001]
[1765507146090,0.02325,92451.0,92450.0,0.001]
[1765507147135,0.03969,92451.0,92448.0,0.01081689]
[1765507147396,0.01081689,92448.0,92444.0,0.05410903]
[1765507147524,0.01081689,92448.0,92436.0,0.05768707]
[1765507147525,0.01081829,92436.0,92433.0,0.05768707]
[1765507147728,0.01081911,92429.0,92425.0,0.22720928]
[1765507147967,0.01081876,92432.0,92427.0,0.01081934]
[1765507148126,0.01081876,92432.0,92429.0,0.01081911]
[1765507148606,0.03406876,92432.0,92429.0,0.01081911]
[1765507148727,0.02325,92432.0,92429.0,0.22719995]
[1765507149147,0.02325,92432.0,92429.0,0.22919995]
[1765507149968,0.01644,92430.0,92429.0,0.22919995]
[1765507150166,0.01644,92430.0,92429.0,0.01281911]
[1765507150368,0.01644,92430.0,92429.0,0.01481911]
[1765507150591,0.01203,92431.0,92430.0,0.21637996]
[1765507150757,0.04459451,92433.0,92432.0,0.01081876]
[1765507151871,0.04459451,92433.0,92432.0,0.01281876]
[1765507152751,0.04459451,92433.0,92432.0,0.01381876]
[1765507156672,0.05963451,92433.0,92432.0,0.003]
[1765507156875,0.08366451,92433.0,92432.0,0.003]
[1765507160431,0.31550348,92433.0,92432.0,0.003]
[1765507160640,0.31550348,92433.0,92398.0,0.05768707]
[1765507160641,0.21639166,92425.0,92398.0,0.05768707]
[1765507160847,0.21639166,92425.0,92400.0,0.56688211]
[1765507160848,0.29471904,92425.0,92400.0,0.56688211]
[1765507161038,0.31874904,92425.0,92402.0,0.01082227]
[1765507161184,0.3960643,92425.0,92406.0,0.0108218]
[1765507161388,0.3960643,92425.0,92412.0,0.0108211]
[1765507161389,0.31874904,92425.0,92412.0,0.0108211]
[1765507161585,0.31874904,92425.0,92410.0,0.5558596]
[1765507162475,0.32874904,92425.0,92424.0,0.00123047]
[1765507163192,0.33874904,92425.0,92424.0,0.00234709]
[1765507164451,0.25508453,92425.0,92424.0,0.00234709]
[1765507164624,0.29415453,92425.0,92424.0,0.00234709]
[1765507164830,0.33874904,92425.0,92424.0,0.00234709]
[1765507165015,0.39196651,92425.0,92424.0,0.00234709]
[1765507166042,0.347372,92425.0,92424.0,0.00234709]
[1765507166920,0.39196651,92425.0,92424.0,0.00234709]
[1765507169108,0.33874904,92425.0,92424.0,0.00234709]
[1765507181297,0.30415542,92425.0,92424.0,0.00234709]
[1765507182963,0.03504,92425.0,92424.0,0.00234709]
[1765507183163,0.05212,92425.0,92424.0,0.00234709]
[1765507183416,0.12074451,92425.0,92424.0,0.00234709]
[1765507183613,0.14779346,92425.0,92424.0,0.00234709]
[1765507183814,0.21836171,92425.0,92424.0,0.00234709]
[1765507184173,0.22405179,92425.0,92424.0,0.00234709]
[1765507184578,0.20489868,92425.0,92424.0,0.00234709]
[1765507184994,0.23194763,92425.0,92424.0,0.00234709]
[1765507186582,0.2335605,92425.0,92424.0,0.00234709]
[1765507189466,0.12235738,92425.0,92424.0,0.00234709]
[1765507190145,0.12235738,92425.0,92424.0,0.2187411]
[1765507190350,0.12235738,92425.0,92424.0,0.00234709]
[1765507191164,0.12074451,92425.0,92424.0,0.2187411]
[1765507191367,0.11961451,92425.0,92424.0,0.00234709]
[1765507191520,0.10253451,92425.0,92424.0,0.2187411]
[1765507191718,0.10253451,92425.0,92424.0,0.00234709]
[1765507191903,0.11961451,92425.0,92424.0,0.00234709]
[1765507192498,0.11961451,92425.0,92424.0,0.2187411]
[1765507193104,0.05794,92425.0,92424.0,0.00234709]
[1765507193320,0.03708,92425.0,92424.0,0.00234709]
[1765507194447,0.07305997,92425.0,92424.0,0.00234709]
[1765507195080,0.12041451,92425.0,92424.0,0.00234709]
[1765507195514,0.08167451,92425.0,92424.0,0.00234709]
[1765507195759,0.10457451,92425.0,92424.0,0.00234709]
[1765507195962,0.08167451,92425.0,92424.0,0.00234709]
[1765507196554,0.09751451,92425.0,92424.0,0.00234709]
[1765507196762,0.03708,92425.0,92424.0,0.00234709]
[1765507197950,0.03987511,92425.0,92424.0,0.00234709]
[1765507198304,0.05695511,92425.0,92424.0,0.00234709]
[1765507199757,0.14028962,92425.0,92424.0,0.00234709]
[1765507200710,0.11738962,92425.0,92424.0,0.00234709]
[1765507200915,0.09751451,92425.0,92424.0,0.00234709]
[1765507201181,0.08167451,92425.0,92424.0,0.00234709]
[1765507201744,0.10457451,92425.0,92424.0,0.00234709]
[1765507201938,0.03708,92425.0,92424.0,0.00234709]
[1765507204560,0.03708,92425.0,92424.0,0.2187411]
[1765507207363,0.02,92425.0,92424.0,0.2187411]
[1765507208426,0.01,92425.0,92424.0,0.2177411]
[1765507208960,0.015,92425.0,92424.0,0.2187411]
[1765507209288,0.01,92425.0,92424.0,0.2177411]
[1765507209730,0.01708,92437.0,92436.0,0.21636591]
[1765507211443,0.02308,92437.0,92436.0,0.21736591]
[1765507211969,0.02808,92437.0,92436.0,0.21836591]
[1765507214036,0.07417174,92437.0,92436.0,0.002]
[1765507214239,0.14742456,92437.0,92436.0,0.002]
[1765507216948,0.43812456,92437.0,92436.0,0.002]
[1765507217155,0.41107912,92437.0,92436.0,0.002]
[1765507220465,0.11302738,92437.0,92436.0,0.002]
[1765507221516,0.04553287,92437.0,92436.0,0.002]
[1765507221704,0.011,92437.0,92436.0,0.002]
[1765507240967,0.011,92437.0,92436.0,0.02363659]
[1765507241594,0.011,92437.0,92436.0,0.35746457]
[1765507241796,0.006,92437.0,92436.0,0.33482798]
[1765507242244,0.06167451,92466.0,92463.0,0.01081513]
[1765507242376,0.01708,92466.0,92464.0,0.21630039]
[1765507244666,0.01708,92466.0,92465.0,0.04329168]
[1765507244876,0.001,92466.0,92465.0,0.04329168]
[1765507245493,0.01708,92472.0,92469.0,0.01081443]
[1765507245891,0.01708,92472.0,92470.0,0.21628636]
[1765507247934,0.07167451,92472.0,92470.0,0.21628636]
[1765507248232,0.06667451,92472.0,92470.0,0.21628636]
[1765507248428,0.02508,92472.0,92470.0,0.21728636]
[1765507248697,0.03308,92472.0,92470.0,0.21828636]
[1765507249331,0.016,92472.0,92470.0,0.21828636]
[1765507252377,0.09585451,92471.0,92470.0,0.002]
[1765507252609,0.09585451,92471.0,92470.0,0.21828636]
[1765507252900,0.07207451,92471.0,92470.0,0.002]
[1765507253933,0.07207451,92471.0,92468.0,0.22710439]
[1765507253934,0.04459451,92469.0,92468.0,0.22710439]
[1765507254335,0.04459451,92470.0,92468.0,0.22710439]
[1765507255199,0.001,92469.0,92468.0,0.22710439]
[1765507255457,0.002,92469.0,92468.0,0.22710439]
[1765507255641,0.001,92469.0,92468.0,0.22710439]
[1765507255944,0.04459451,92470.0,92468.0,0.22710439]
[1765507256276,0.04459451,92474.0,92473.0,0.01081396]
[1765507256634,0.04459451,92474.0,92473.0,0.22708961]
[1765507257753,0.05359451,92474.0,92473.0,0.22808961]
[1765507258061,0.06159451,92474.0,92473.0,0.22808961]
[1765507258261,0.05605,92474.0,92473.0,0.22808961]
[1765507258603,0.03227,92474.0,92473.0,0.22808961]
[1765507259302,0.017,92474.0,92473.0,0.22808961]
[1765507266518,0.017,92474.0,92473.0,0.01181396]
[1765507267315,0.017,92474.0,92473.0,0.2280933]
[1765507268121,0.03408,92474.0,92473.0,0.2280933]
[1765507268949,0.017,92474.0,92473.0,0.2280933]
[1765507272255,0.009,92474.0,92473.0,0.2280933]
[1765507272455,0.01,92474.0,92473.0,0.2300933]
[1765507272866,0.01,92474.0,92473.0,0.2310933]
[1765507284860,0.01,92474.0,92473.0,0.004]
[1765507285060,0.01559036,92474.0,92473.0,0.004]
[1765507285479,0.05525036,92474.0,92473.0,0.004]
[1765507285890,0.04966,92474.0,92473.0,0.004]
[1765507286970,0.02595,92474.0,92473.0,0.004]
[1765507287271,0.01,92474.0,92473.0,0.004]
[1765507288046,0.01,92474.0,92473.0,0.02562793]
[1765507289404,0.01,92474.0,92473.0,0.004]
[1765507297542,0.01,92474.0,92473.0,0.06192717]
[1765507304021,0.01,92474.0,92473.0,0.004]
[1765507305043,0.01876009,92474.0,92473.0,0.004]
[1765507305446,0.06980009,92474.0,92473.0,0.004]
[1765507305656,0.06104,92474.0,92473.0,0.004]
[1765507306275,0.10563451,92474.0,92473.0,0.004]
[1765507314076,0.01,92474.0,92473.0,0.004]
[1765507328488,0.01161287,92474.0,92473.0,0.004]
[1765507338363,0.10646738,92474.0,92473.0,0.004]
[1765507338585,0.06187287,92474.0,92473.0,0.004]
[1765507338954,0.03838287,92474.0,92473.0,0.004]
[1765507339359,0.02323287,92474.0,92473.0,0.004]
[1765507339512,0.01161287,92474.0,92473.0,0.004]
[1765507342435,0.01,92474.0,92473.0,0.004]
[1765507344649,0.01,92474.0,92473.0,0.02562793]
[1765507344950,0.01,92474.0,92473.0,0.004]
[1765507346309,0.01,92474.0,92473.0,0.02562793]
[1765507346509,0.01,92474.0,92473.0,0.06192717]
[1765507346795,0.01,92474.0,92473.0,0.09439464]
[1765507347681,0.01,92474.0,92473.0,0.03646747]
[1765507349311,0.01,92474.0,92473.0,0.07975915]
[1765507383363,0.01,92474.0,92473.0,0.14451506]
[1765507384356,0.01,92474.0,92473.0,0.10138708]
[1765507384711,0.01,92474.0,92473.0,0.03646747]
[1765507385879,0.02243326,92479.0,92473.0,0.04328143]
[1765507385880,0.01081361,92476.0,92473.0,0.04328143]
[1765507386083,0.01081338,92478.0,92474.0,0.22709071]
[1765507386307,0.01081338,92478.0,92474.0,0.01081385]
[1765507386541,0.01081349,92477.0,92473.0,0.04528143]
[1765507386702,0.001,92474.0,92473.0,0.04728143]
[1765507387109,0.01081361,92476.0,92473.0,0.04328143]
[1765507387315,0.01081349,92477.0,92474.0,0.01381385]
[1765507387734,0.01081349,92477.0,92474.0,0.01081385]
[1765507388119,0.01081338,92478.0,92475.0,0.01081373]
[1765507388315,0.01081338,92478.0,92473.0,0.03246747]
[1765507388316,0.216277,92474.0,92473.0,0.03246747]
[1765507388516,0.22710804,92467.0,92462.0,0.06869889]
[1765507388786,0.04459451,92465.0,92462.0,0.06869889]
[1765507389101,0.00161287,92465.0,92463.0,0.03247166]
[1765507389289,0.08385451,92464.0,92463.0,0.03247166]
[1765507389491,0.08385451,92464.0,92449.0,0.01081677]
[1765507389492,0.04459451,92452.0,92450.0,0.05788364]
[1765507389622,0.04459451,92452.0,92451.0,0.21633081]
[1765507390181,0.01162,92453.0,92451.0,0.24880735]
[1765507391133,0.001,92452.0,92451.0,0.24880735]
[1765507392339,0.001,92453.0,92451.0,0.24880735]
[1765507392630,0.01869287,92464.0,92458.0,0.01081572]
[1765507392822,0.01869287,92464.0,92461.0,0.01081537]
[1765507393018,0.01869287,92464.0,92461.0,0.2271211]
[1765507393223,0.05245788,92464.0,92460.0,0.01081548]
[1765507393433,0.05245788,92464.0,92461.0,0.01081537]
[1765507393887,0.05150788,92464.0,92461.0,0.01081537]
[1765507394090,0.06145788,92464.0,92461.0,0.01081537]
[1765507394293,0.03850788,92464.0,92461.0,0.01081537]
[1765507394495,0.02295,92463.0,92461.0,0.01081537]
[1765507395925,0.03195,92463.0,92461.0,0.01181537]
[1765507396329,0.0265,92462.0,92461.0,0.002]
[1765507396535,0.05145,92462.0,92461.0,0.002]
[1765507397178,0.09604451,92462.0,92461.0,0.002]
[1765507397974,0.09604451,92462.0,92461.0,0.001]
[1765507398169,0.09604451,92462.0,92461.0,0.002]
[1765507398373,0.10504451,92462.0,92461.0,0.001]
[1765507398935,0.11704451,92462.0,92461.0,0.002]
[1765507404479,0.11704451,92462.0,92461.0,0.21830741]
[1765507405509,0.11704451,92462.0,92461.0,0.002]
[1765507406840,0.13854351,92462.0,92461.0,0.002]
[1765507407053,0.021,92462.0,92461.0,0.002]
[1765507408296,0.021,92462.0,92461.0,0.21830741]
[1765507413092,0.06559451,92462.0,92461.0,0.21830741]
[1765507413306,0.021,92462.0,92461.0,0.21830741]
[1765507416956,0.021,92462.0,92461.0,0.25078198]
[1765507418646,0.06800809,92462.0,92461.0,0.03447457]
[1765507418857,0.32296505,92462.0,92461.0,0.002]
[1765507419061,0.29592692,92462.0,92461.0,0.002]
[1765507419316,0.26093,92449.0,92448.0,0.03248078]
[1765507419519,0.27394287,92449.0,92448.0,0.03248078]
[1765507419726,0.31500287,92449.0,92448.0,0.03248078]
[1765507419922,0.31500287,92449.0,92434.0,0.01081852]
[1765507419923,0.01081771,92441.0,92436.0,0.22718373]
[1765507420148,0.03635,92440.0,92436.0,0.22718373]
[1765507420434,0.03303313,92439.0,92438.0,0.03248333]
[1765507420634,0.05798313,92439.0,92438.0,0.03248333]
[1765507420839,0.07409313,92439.0,92438.0,0.03248333]
[1765507421042,0.07409313,92439.0,92430.0,0.01081899]
[1765507421043,0.01000089,92433.0,92430.0,0.01081899]
[1765507421250,0.01611,92431.0,92429.0,0.01081911]
[1765507421457,0.01611,92430.0,92429.0,0.01081911]
[1765507421792,0.04106,92430.0,92429.0,0.01081911]
[1765507421993,0.04106,92430.0,92429.0,0.03576911]
[1765507423027,0.04106,92430.0,92429.0,0.03676911]
[1765507423658,0.04206,92430.0,92429.0,0.04076911]
[1765507428304,0.01711,92430.0,92429.0,0.04076911]
[1765507428712,0.001,92430.0,92429.0,0.04076911]
[1765507429745,0.001,92430.0,92429.0,0.01581911]
[1765507431033,0.001,92430.0,92429.0,0.03745734]
[1765507431232,0.001,92430.0,92429.0,0.01581911]
[1765507435036,0.001,92430.0,92429.0,0.03745734]
[1765507441340,0.001,92430.0,92429.0,0.01581911]
[1765507442244,0.001,92430.0,92429.0,0.03745734]
[1765507446168,0.001,92430.0,92429.0,0.0954576]
[1765507447222,0.001,92430.0,92429.0,0.03757396]
[1765507473863,0.001,92430.0,92429.0,0.01593573]
[1765507475682,0.001,92430.0,92429.0,0.03757396]
[1765507477129,0.001,92430.0,92429.0,0.01593573]
[1765507477462,0.001,92430.0,92429.0,0.40388179]
[1765507477636,0.001,92430.0,92429.0,0.38224356]
[1765507481854,0.001,92430.0,92429.0,0.43226195]
[1765507482045,0.01708,92464.0,92463.0,0.21630273]
[1765507482587,0.0123,92472.0,92469.0,0.2162865]
[1765507482754,0.01391287,92472.0,92469.0,0.2162865]
[1765507483323,0.04459451,92470.0,92469.0,0.22710093]
[1765507483950,0.04459451,92470.0,92469.0,0.22810093]
[1765507484380,0.06905451,92470.0,92469.0,0.22710093]
[1765507484574,0.08205451,92470.0,92469.0,0.22810093]
[1765507485461,0.08205451,92470.0,92469.0,0.22910093]
[1765507485904,0.08205451,92470.0,92469.0,0.22810093]
[1765507486057,0.013,92470.0,92469.0,0.22810093]
[1765507486263,0.023,92470.0,92469.0,0.22910093]
[1765507487416,0.01,92470.0,92469.0,0.22810093]
[1765507487820,0.01,92470.0,92469.0,0.22910093]
[1765507487821,0.023,92470.0,92469.0,0.22910093]
[1765507488415,0.013,92470.0,92469.0,0.22810093]
[1765507488660,0.023,92470.0,92469.0,0.22910093]
[1765507488836,0.01,92470.0,92469.0,0.22810093]
[1765507489301,0.00161287,92472.0,92469.0,0.22710093]
[1765507489531,0.002,92470.0,92469.0,0.22710093]
[1765507490153,0.00161287,92472.0,92469.0,0.22710093]
[1765507491950,0.00761287,92472.0,92469.0,0.22810093]
[1765507492370,0.01461287,92472.0,92469.0,0.22910093]
[1765507492740,0.01461287,92472.0,92469.0,0.24618093]
[1765507492934,0.01461287,92472.0,92471.0,0.21628402]
[1765507493810,0.00861287,92472.0,92471.0,0.21628402]